Workbook

Sheet ค่าใช้จ่าย
B3: งบประมาณจัดกิจกรรมสำหรับ [ชื่อกิจกรรม]
H4: ค่าใช้จ่าย
H6: ค่าใช้จ่ายโดยประมาณ | I6: ค่าใช้จ่ายจริง
C7: ค่าใช้จ่ายทั้งหมด | H7: =SUM(D14,D22,D28,D35,H14,H22,H27) -> ฿1,145.00 | I7: =SUM(E14,E22,E28,E35,I14,I22,I27) -> ฿395.00
C9: สถานที่ | D9: ค่าใช้จ่ายโดยประมาณ | E9: ค่าใช้จ่ายจริง | G9: อาหารว่าง | H9: ค่าใช้จ่ายโดยประมาณ | I9: ค่าใช้จ่ายจริง
C10: ค่าห้องและหอประชุม | D10: ฿500.00 | E10: ฿250.00 | G10: อาหาร
C11: เจ้าหน้าที่ของสถานที่ | D11: ฿400.00 | E11: ฿50.00 | G11: เครื่องดื่ม
C12: อุปกรณ์ | G12: ผ้าปูโต๊ะ
C13: โต๊ะและเก้าอี้ | G13: พนักงานและเงินค่าตอบแทน
C14: ผลรวม | D14: =SUBTOTAL(109,ตาราง1[ค่าใช้จ่ายโดยประมาณ]) -> ฿900.00 | E14: =SUBTOTAL(109,ตาราง1[ค่าใช้จ่ายจริง]) -> ฿300.00 | G14: ผลรวม | H14: =SUBTOTAL(109,ตาราง5[ค่าใช้จ่ายโดยประมาณ]) -> ฿0.00 | I14: =SUBTOTAL(109,ตาราง5[ค่าใช้จ่ายจริง]) -> ฿0.00
C16: การตกแต่ง | D16: ค่าใช้จ่ายโดยประมาณ | E16: ค่าใช้จ่ายจริง | G16: รายการแสดง | H16: ค่าใช้จ่ายโดยประมาณ | I16: ค่าใช้จ่ายจริง
C17: ดอกไม้ | D17: ฿200.00 | E17: ฿50.00 | G17: ผู้แสดง
C18: เทียน | G18: ลำโพง
C19: โคมไฟ | G19: การเดินทาง
C20: บอลลูน | G20: โรงแรม
C21: วัสดุกระดาษ | G21: อื่นๆ
C22: ผลรวม | D22: =SUBTOTAL(109,ตาราง2[ค่าใช้จ่ายโดยประมาณ]) -> ฿200.00 | E22: =SUBTOTAL(109,ตาราง2[ค่าใช้จ่ายจริง]) -> ฿50.00 | G22: ผลรวม | H22: =SUBTOTAL(109,ตาราง6[ค่าใช้จ่ายโดยประมาณ]) -> ฿0.00 | I22: =SUBTOTAL(109,ตาราง6[ค่าใช้จ่ายจริง]) -> ฿0.00
C24: การประชาสัมพันธ์ | D24: ค่าใช้จ่ายโดยประมาณ | E24: ค่าใช้จ่ายจริง | G24: รางวัล | H24: ค่าใช้จ่ายโดยประมาณ | I24: ค่าใช้จ่ายจริง
C25: งานกราฟิก | D25: ฿45.00 | E25: ฿45.00 | G25: สายสะพาย/โล่/ถ้วยรางวัล
C26: การถ่ายสำเนา/การพิมพ์ | G26: ของชำร่วย
C27: ค่าไปรษณีย์ | G27: ผลรวม | H27: =SUBTOTAL(109,ตาราง7[ค่าใช้จ่ายโดยประมาณ]) -> ฿0.00 | I27: =SUBTOTAL(109,ตาราง7[ค่าใช้จ่ายจริง]) -> ฿0.00
C28: ผลรวม | D28: =SUBTOTAL(109,ตาราง3[ค่าใช้จ่ายโดยประมาณ]) -> ฿45.00 | E28: =SUBTOTAL(109,ตาราง3[ค่าใช้จ่ายจริง]) -> ฿45.00
C30: เบ็ดเตล็ด | D30: ค่าใช้จ่ายโดยประมาณ | E30: ค่าใช้จ่ายจริง
C31: โทรศัพท์
C32: พาหนะเดินทาง
C33: อุปกรณ์เครื่องเขียน
C34: บริการโทรสาร
C35: ผลรวม | D35: =SUBTOTAL(109,ตาราง4[ค่าใช้จ่ายโดยประมาณ]) -> ฿0.00 | E35: =SUBTOTAL(109,ตาราง4[ค่าใช้จ่ายจริง]) -> ฿0.00

Sheet รายได้
B3: งบประมาณจัดกิจกรรมสำหรับ [ชื่อกิจกรรม]
F4: รายได้
F6: ค่าใช้จ่ายโดยประมาณ | G6: ค่าใช้จ่ายจริง
B7: รายได้ทั้งหมด | F7: =SUM(F14,F21,F28,F36) -> ฿1,936.00 | G7: =SUM(G14,G21,G28,G36) -> ฿1,831.00
B9: ค่าธรรมเนียมในการเข้า
B10: ค่าใช้จ่ายโดยประมาณ | C10: ค่าใช้จ่ายจริง | F10: ค่าใช้จ่ายโดยประมาณ | G10: ค่าใช้จ่ายจริง
B11: 300 | C11: 278 | D11: ผู้ใหญ่ @ | E11: ฿5.00 | F11: =B11*E11 -> ฿1,500.00 | G11: =C11*E11 -> ฿1,390.00
B12: 197 | C12: 195 | D12: เด็ก @ | E12: ฿2.00 | F12: =B12*E12 -> ฿394.00 | G12: =C12*E12 -> ฿390.00
B13: 42 | C13: 51 | D13: อื่นๆ @ | E13: ฿1.00 | F13: =B13*E13 -> ฿42.00 | G13: =C13*E13 -> ฿51.00
F14: =SUM(F11:F13) -> ฿1,936.00 | G14: =SUM(G11:G13) -> ฿1,831.00
B16: โฆษณาในรายการแสดง
B17: ค่าใช้จ่ายโดยประมาณ | C17: ค่าใช้จ่ายจริง | F17: ค่าใช้จ่ายโดยประมาณ | G17: ค่าใช้จ่ายจริง
D18: ใบปะหน้า @ | F18: =B18*E18 -> ฿0.00 | G18: =C18*E18 -> ฿0.00
D19: ครึ่งหน้า @ | F19: =B19*E19 -> ฿0.00 | G19: =C19*E19 -> ฿0.00
D20: 1/4 หน้า @ | F20: =B20*E20 -> ฿0.00 | G20: =C20*E20 -> ฿0.00
F21: =SUM(F18:F20) -> ฿0.00 | G21: =SUM(G18:G20) -> ฿0.00
B23: ผู้จัดแสดงนิทรรศการ/ผู้จัดจำหน่าย
B24: ค่าใช้จ่ายโดยประมาณ | C24: ค่าใช้จ่ายจริง | F24: ค่าใช้จ่ายโดยประมาณ | G24: ค่าใช้จ่ายจริง
D25: บูธขนาดใหญ่ @ | F25: =B25*E25 -> ฿0.00 | G25: =C25*E25 -> ฿0.00
D26: บูธขนาดกลาง @ | F26: =B26*E26 -> ฿0.00 | G26: =C26*E26 -> ฿0.00
D27: บูธขนาดเล็ก @ | F27: =B27*E27 -> ฿0.00 | G27: =C27*E27 -> ฿0.00
F28: =SUM(F25:F27) -> ฿0.00 | G28: =SUM(G25:G27) -> ฿0.00
B30: ยอดขายสินค้า
B31: ค่าใช้จ่ายโดยประมาณ | C31: ค่าใช้จ่ายจริง | F31: ค่าใช้จ่ายโดยประมาณ | G31: ค่าใช้จ่ายจริง
D32: สินค้า @ | F32: =B32*E32 -> ฿0.00 | G32: =C32*E32 -> ฿0.00
D33: สินค้า @ | F33: =B33*E33 -> ฿0.00 | G33: =C33*E33 -> ฿0.00
D34: สินค้า @ | F34: =B34*E34 -> ฿0.00 | G34: =C34*E34 -> ฿0.00
D35: สินค้า @ | F35: =B35*E35 -> ฿0.00 | G35: =C35*E35 -> ฿0.00
F36: =SUM(F32:F35) -> ฿0.00 | G36: =SUM(G32:G35) -> ฿0.00

Sheet สรุป
B3: งบประมาณจัดกิจกรรมสำหรับ [ชื่อกิจกรรม]
F4: สรุปกำไรขาดทุน
F6: โดยประมาณ | G6: ตามที่เป็นจริง
B7: รายได้ทั้งหมด | F7: =รายได้!F7 -> ฿1,936.00 | G7: =รายได้!G7 -> ฿1,831.00
B8: ค่าใช้จ่ายทั้งหมด | F8: =ค่าใช้จ่าย!H7 -> ฿1,145.00 | G8: =ค่าใช้จ่าย!I7 -> ฿395.00
B9: ผลกำไร (หรือขาดทุน) | F9: =F7-F8 -> ฿791.00 | G9: =G7-G8 -> ฿1,436.00
